bitfinex/quotes_SOLUSD_20251130
["timestamp","ask_amount","ask_price","bid_price","bid_amount"]
[1764464727757,0.7,136.44,136.42,19.64411727]
[1764464728071,0.7,136.44,136.42,7.32984921]
[1764464728278,3.95978403,136.44,136.42,7.32984921]
[1764464728454,0.7,136.44,136.42,7.32984921]
[1764464728654,0.7,136.43,136.42,7.32984921]
[1764464731756,0.7,136.43,136.41,3.22]
[1764464731961,0.7,136.43,136.38,16.14226448]
[1764464731962,3.25978403,136.42,136.38,16.14226448]
[1764464732190,8.02977378,136.43,136.38,16.14226448]
[1764464732191,0.7,136.43,136.38,16.14226448]
[1764464732359,3.95978403,136.42,136.39,0.28432314]
[1764464732682,23.63762416,136.45,136.39,6.78410717]
[1764464732683,0.7,136.41,136.39,6.78410717]
[1764464732855,3.25978403,136.44,136.41,0.28432314]
[1764464732856,0.7,136.44,136.41,0.28432314]
[1764464733058,0.7,136.43,136.42,3.24]
[1764464733571,0.7,136.45,136.42,6.49978403]
[1764464734786,0.7,136.45,136.43,10.58955021]
[1764464734956,0.7,136.45,136.43,7.32976618]
[1764464736784,0.7,136.45,136.42,3.24]
[1764464738361,0.7,136.45,136.42,10.57008725]
[1764464746288,0.7,136.45,136.43,0.28432314]
[1764464746494,0.7,136.45,136.43,9.09426806]
[1764464747593,0.7,136.45,136.43,16.42351292]
[1764464750070,3.95978403,136.45,136.42,3.24]
[1764464750272,3.95978403,136.45,136.41,62.8]
[1764464750273,3.25978403,136.43,136.41,62.8]
[1764464750592,3.25978403,136.42,136.41,62.8]
[1764464751096,3.95978403,136.42,136.41,62.8]
[1764464752297,0.7,136.42,136.41,62.8]
[1764464752592,2.78243129,136.42,136.41,62.8]
[1764464754498,0.7,136.42,136.41,62.8]
[1764464754794,2.78243129,136.42,136.41,62.8]
[1764464755700,2.78243129,136.42,136.4,7.33132852]
[1764464755908,0.69,136.41,136.4,7.33132852]
[1764464758197,0.69,136.45,136.41,0.28432314]
[1764464758395,0.69,136.45,136.4,16.14127344]
[1764464758396,0.69,136.47,136.44,2.08243129]
[1764464758586,0.69,136.47,136.45,9.09426806]
[1764464758901,0.69,136.49,136.46,3.22]
[1764464759305,2.08243129,136.54,136.47,9.09426806]
[1764464759504,3.22,136.55,136.47,9.09426806]
[1764464759505,2.77243129,136.53,136.48,2.08243129]
[1764464759706,0.69,136.53,136.49,5.30243129]
[1764464759897,0.69,136.52,136.5,7.32600732]
[1764464760287,0.69,136.52,136.49,10.54646323]
[1764464760288,2.08243129,136.51,136.49,10.54646323]
[1764464760486,2.77243129,136.52,136.49,10.54646323]
[1764464760688,0.69,136.51,136.49,7.32646323]
[1764464761291,0.69,136.51,136.5,8.80994492]
[1764464761805,0.69,136.51,136.49,7.32646323]
[1764464762006,2.77243129,136.51,136.49,7.32646323]
[1764464762185,0.69,136.5,136.49,7.32646323]
[1764464762585,0.69,136.51,136.49,7.32646323]
[1764464762885,2.77243129,136.51,136.49,7.32646323]
[1764464763281,0.69,136.5,136.49,7.32646323]
[1764464763811,0.69,136.52,136.5,8.80994492]
[1764464764008,0.69,136.52,136.5,9.09426806]
[1764464764906,0.69,136.52,136.48,3.22]
[1764464764907,0.69,136.52,136.48,19.66134895]
[1764464765113,0.69,136.52,136.48,40.06148246]
[1764464765292,0.69,136.52,136.5,0.28432314]
[1764464765494,0.69,136.54,136.52,8.95210649]
[1764464765691,0.69,136.54,136.52,11.03453778]
[1764464765894,0.31064775,136.59,136.53,2.22459286]
[1764464765895,0.69,136.56,136.53,2.22459286]
[1764464766888,0.69,136.56,136.54,7.32386113]
[1764464769409,0.69,136.56,136.52,32.58662314]
[1764464769410,0.69,136.56,136.53,7.32439756]
[1764464770613,0.69,136.56,136.53,9.40682885]
[1764464772498,0.69,136.56,136.53,7.32439756]
[1764464772920,0.69,136.56,136.53,9.40682885]
[1764464775021,0.69,136.56,136.53,7.32439756]
[1764464778598,0.69,136.56,136.52,10.54483785]
[1764464779215,0.69,136.56,136.52,12.62726914]
[1764464780221,0.69,136.56,136.52,7.32483785]
[1764464780405,2.08243129,136.55,136.52,7.32483785]
[1764464780723,0.69,136.56,136.52,7.32483785]
[1764464780724,2.77243129,136.56,136.52,7.32483785]
[1764464780923,0.72,136.55,136.52,7.32483785]
[1764464789819,0.69,136.58,136.55,8.80994492]
[1764464790020,0.69,136.58,136.55,14.11237621]
[1764464790210,0.69,136.58,136.55,12.02994492]
[1764464790412,0.1,136.59,136.56,0.28432314]
[1764464790613,0.79,136.59,136.56,0.28432314]
[1764464791708,2.08243129,136.58,136.55,12.02994492]
[1764464791913,2.08243129,136.58,136.55,19.35286488]
[1764464792219,0.69,136.57,136.55,16.13286488]
[1764464792920,2.77243129,136.57,136.54,3.22]
[1764464793121,2.08243129,136.56,136.54,7.32381103]
[1764464793321,2.77243129,136.56,136.54,7.32381103]
[1764464793518,0.69,136.55,136.54,7.32381103]
[1764464794831,10.0957763,136.55,136.5,19.35595224]
[1764464795047,2.08243129,136.51,136.48,7.32708089]
[1764464795217,2.08243129,136.51,136.48,10.54708089]
[1764464795530,0.69,136.5,136.48,7.32708089]
[1764464796516,2.77243129,136.5,136.46,8.80994492]
[1764464796717,2.77243129,136.5,136.44,7.32922896]
[1764464796718,2.08243129,136.48,136.44,7.32922896]
[1764464797039,8.01608471,136.5,136.42,2.08243129]
[1764464797040,2.08243129,136.46,136.42,7.32999819]
[1764464797210,0.69,136.45,136.42,10.54999819]
[1764464797407,2.77243129,136.45,136.41,16.14063546]
[1764464797632,2.77243129,136.45,136.42,0.28432314]
[1764464797812,0.69,136.44,136.42,0.28432314]
[1764464798011,0.69,136.44,136.43,7.32976618]
[1764464798534,0.69,136.52,136.45,0.28432314]
[1764464798837,0.69,136.51,136.48,0.28432314]
[1764464799320,0.69,136.51,136.48,2.36675443]
[1764464799521,2.08243129,136.53,136.49,2.08243129]
[1764464799522,0.69,136.53,136.49,2.08243129]
[1764464799723,18.39129529,136.55,136.49,2.08243129]
[1764464799917,0.69,136.52,136.5,2.08243129]
[1764464800307,0.69,136.52,136.5,7.32562691]
[1764464801237,0.69,136.52,136.5,12.27508208]
[1764464801832,0.69,136.52,136.5,7.32562691]
[1764464803140,0.69,136.52,136.49,7.32654406]
[1764464803319,0.69,136.52,136.49,12.27599923]
[1764464804432,0.69,136.52,136.5,4.94945517]
[1764464804655,0.69,136.53,136.5,4.94945517]
[1764464804839,12.27228914,136.56,136.51,4.94945517]
[1764464804840,0.69,136.55,136.51,4.94945517]
[1764464806440,0.69,136.55,136.52,7.32493407]
[1764464806641,0.69,136.55,136.52,12.27438924]
[1764464807239,0.69,136.55,136.52,7.32493407]
[1764464810239,0.69,136.55,136.51,15.51476717]
[1764464810437,0.69,136.55,136.51,10.565312]
[1764464810637,0.69,136.55,136.51,7.325312]
[1764464810848,12.96322746,136.55,136.5,7.32585425]
[1764464811143,12.96322746,136.55,136.5,12.27530942]
[1764464811451,0.69,136.54,136.5,12.27530942]
[1764464811860,0.69,136.54,136.5,7.32585425]
[1764464812061,0.69,136.54,136.5,12.27530942]
[1764464814762,0.69,136.54,136.5,15.94214359]
[1764464816050,0.69,136.54,136.51,8.61628934]
[1764464816950,0.69,136.54,136.5,15.94214359]
[1764464820769,0.69,136.54,136.5,34.2571619]
[1764464821055,0.69,136.54,136.51,8.61628934]
[1764464822165,0.69,136.54,136.52,7.32493407]
[1764464829276,0.71,136.58,136.53,15.29709764]
[1764464829564,0.71,136.58,136.55,3.24715272]
[1764464829937,0.71,136.58,136.55,0.74715272]
[1764464831364,0.71,136.58,136.56,7.32278851]
[1764464835254,0.71,136.58,136.55,7.32332478]
[1764464835453,0.71,136.58,136.55,10.5704775]
[1764464835854,0.71,136.58,136.55,7.32332478]
[1764464838575,0.71,136.58,136.55,10.5704775]
[1764464838755,0.71,136.58,136.55,7.32332478]
[1764464838956,0.71,136.58,136.55,10.5704775]
[1764464839270,0.71,136.58,136.55,7.32332478]
[1764464844368,0.1,136.59,136.57,3.24715272]
[1764464844567,0.79,136.59,136.56,15.58142078]
[1764464845369,0.79,136.59,136.57,7.32225232]
[1764464845570,0.8,136.59,136.57,10.56940504]
[1764464845759,0.8,136.59,136.57,7.32225232]
[1764464845955,0.1,136.59,136.58,9.09426806]
[1764464846156,0.1,136.59,136.57,10.56940504]
[1764464846350,0.8,136.59,136.57,7.32225232]
[1764464847075,0.8,136.59,136.57,10.56940504]
[1764464847301,0.8,136.59,136.57,7.32225232]
[1764464849902,4.04715272,136.59,136.55,7.32293571]
[1764464850179,3.24715272,136.58,136.55,7.32293571]
[1764464850387,3.94715272,136.58,136.55,7.32293571]
[1764464850565,0.7,136.57,136.55,7.32293571]
[1764464851857,0.7,136.57,136.54,25.63293225]
[1764464852153,0.7,136.57,136.54,28.88008497]
[1764464853159,0.1,136.59,136.54,21.55622384]
[1764464853359,0.1,136.59,136.53,63.08432314]
[1764464853360,0.1,136.59,136.55,25.91577755]
[1764464853565,0.1,136.59,136.58,12.34142078]
[1764464853789,0.1,136.64,136.6,0.28432314]
[1764464853959,0.1,136.64,136.61,3.24]
[1764464854359,0.8,136.64,136.61,3.24]
[1764464854561,0.8,136.64,136.6,3.53147586]
[1764464854767,0.8,136.64,136.6,3.24715272]
[1764464855168,0.8,136.64,136.6,10.56751591]
[1764464855457,0.8,136.64,136.61,3.24715272]
[1764464856078,0.8,136.64,136.6,0.28432314]
[1764464856276,0.8,136.64,136.61,3.24715272]
[1764464857219,0.8,136.64,136.61,10.56690121]
[1764464857577,0.8,136.64,136.62,3.24715272]
[1764464857779,0.8,136.64,136.61,7.31974849]
[1764464858083,0.8,136.64,136.61,10.56690121]
[1764464858682,0.8,136.64,136.6,10.84489099]
[1764464858889,0.8,136.64,136.6,3.53147586]
[1764464859194,0.8,136.64,136.6,10.85195358]
[1764464861597,3.24715272,136.63,136.6,7.32047772]
[1764464861796,3.24715272,136.62,136.6,7.32047772]
[1764464862107,3.94715272,136.63,136.6,7.32047772]
[1764464862272,3.24715272,136.61,136.58,70.12141907]
[1764464862588,3.24715272,136.59,136.55,7.32332478]
[1764464862891,3.24715272,136.59,136.55,16.1332697]
[1764464863096,0.7,136.58,136.55,16.1332697]
[1764464864498,0.7,136.58,136.55,7.32332478]
[1764464865574,0.7,136.58,136.54,25.63336174]
[1764464865874,0.7,136.58,136.55,3.24715272]
[1764464866105,0.7,136.59,136.55,12.05709764]
[1764464867370,0.7,136.59,136.56,7.32278851]
[1764464868194,0.7,136.59,136.56,10.56278851]
[1764464868891,0.7,136.61,136.57,9.09426806]
[1764464869071,0.7,136.61,136.57,12.34142078]
[1764464869470,0.7,136.61,136.58,7.32171621]
[1764464870891,0.7,136.61,136.57,7.3221874]
[1764464870892,3.24715272,136.6,136.57,7.3221874]
[1764464871384,0.7,136.59,136.57,7.3221874]
[1764464872113,3.94715272,136.59,136.53,3.24715272]
[1764464872284,3.24715272,136.58,136.54,7.32386113]
[1764464872478,3.94715272,136.58,136.54,7.32386113]
[1764464872689,0.7,136.57,136.54,7.32386113]
[1764464873798,0.7,136.57,136.53,13.81125135]
[1764464873967,0.7,136.57,136.53,10.56409863]
[1764464874172,3.24715272,136.56,136.52,23.6334018]
[1764464874376,3.24,136.59,136.5,8.80994492]
[1764464874377,3.94715272,136.55,136.5,8.80994492]
[1764464874593,0.7,136.55,136.5,15.29709764]
[1764464874793,0.7,136.54,136.5,15.29709764]
[1764464875107,0.7,136.54,136.51,3.53147586]
[1764464875481,0.7,136.54,136.51,0.28432314]
[1764464875794,0.7,136.54,136.51,3.53147586]
[1764464875999,0.7,136.54,136.52,7.32493407]
[1764464876900,0.67,136.57,136.53,2.07809701]
[1764464877078,0.67,136.57,136.53,14.41236507]
[1764464877679,0.67,136.57,136.54,2.07809701]
[1764464877886,0.67,136.57,136.54,7.32386113]
[1764464880200,0.67,136.58,136.54,7.32386113]
[1764464880902,7.99069202,136.6,136.55,11.17236507]
[1764464881415,0.67,136.59,136.56,3.24]
[1764464882226,0.67,136.59,136.56,10.56253491]
[1764464884994,0.67,136.59,136.56,7.32253491]
[1764464886693,0.67,136.59,136.56,10.56253491]
[1764464887617,0.67,136.59,136.56,7.32253491]
[1764464887793,0.67,136.59,136.56,10.56253491]
[1764464894019,2.07809701,136.58,136.55,16.41753165]
[1764464894193,2.07809701,136.58,136.55,19.65753165]
[1764464894389,0.67,136.59,136.53,62.8]
[1764464894390,2.07809701,136.56,136.53,62.8]
[1764464894594,2.07809701,136.56,136.53,12.04994492]
[1764464894896,0.67,136.55,136.53,12.04994492]
[1764464895423,0.67,136.55,136.53,19.37429016]
[1764464896194,2.74809701,136.55,136.52,7.32475528]
[1764464896398,2.07809701,136.53,136.5,19.37595224]
[1764464896596,2.07809701,136.52,136.48,16.13702581]
[1764464896822,2.07809701,136.52,136.49,0.28432314]
[1764464897009,2.74809701,136.51,136.48,10.56708089]
[1764464897424,2.07809701,136.49,136.44,7.32922896]
[1764464897625,2.74809701,136.5,136.46,8.80994492]
[1764464897811,0.67,136.5,136.46,8.80994492]
[1764464898012,0.67,136.5,136.47,7.32761779]
[1764464898013,0.67,136.49,136.47,7.32761779]
[1764464900224,0.67,136.49,136.47,0.28432314]
[1764464900527,0.67,136.49,136.47,3.52432314]
[1764464900723,2.07809701,136.48,136.46,16.13802129]
[1764464901125,0.66,136.47,136.46,7.32807637]
[1764464904526,2.73809701,136.47,136.44,7.32893406]
[1764464904729,2.07809701,136.45,136.42,7.32992062]
[1764464905034,2.07809701,136.44,136.42,10.56992062]
[1764464905534,2.78809701,136.44,136.42,10.56992062]
[1764464906219,0.71,136.43,136.42,19.66418868]
[1764464906407,0.71,136.43,136.42,10.56992062]
[1764464907105,0.71,136.43,136.41,3.44]
[1764464907314,2.78809701,136.43,136.41,3.44]
[1764464907815,0.71,136.42,136.41,3.44]
[1764464910057,25.64666226,136.47,136.41,3.44]
[1764464910335,2.07809701,136.45,136.41,10.77054067]
[1764464910504,8.03761779,136.47,136.41,10.77054067]
[1764464910505,2.78809701,136.44,136.41,10.77054067]
[1764464912204,0.71,136.43,136.41,10.77054067]
[1764464913340,0.71,136.43,136.41,10.77054067]
[1764464916048,0.71,136.49,136.42,27.48122907]
[1764464916252,2.78809701,136.48,136.44,9.09426806]
[1764464916456,2.78809701,136.48,136.45,3.24]
[1764464916751,0.71,136.47,136.45,3.24]
[1764464917825,2.78809701,136.47,136.45,3.24]
[1764464918028,0.71,136.47,136.45,3.24]
[1764464918237,0.71,136.46,136.45,3.24]
[1764464918741,0.71,136.46,136.44,16.42333573]
[1764464919848,2.07809701,136.45,136.41,0.2]
[1764464920157,2.07809701,136.44,136.41,19.58030901]
[1764464920356,2.78809701,136.45,136.42,0.14216157]
[1764464920530,2.07809701,136.45,136.42,0.28432314]
[1764464920727,0.71,136.44,136.42,0.28432314]
[1764464922055,0.71,136.44,136.42,7.61425627]
[1764464926157,7.32805963,136.47,136.42,7.61425627]
[1764464926367,7.32720985,136.48,136.46,2.07809701]
[1764464926833,0.71,136.48,136.44,10.56885935]
[1764464927033,0.71,136.48,136.45,2.07809701]
[1764464927229,2.78809701,136.48,136.44,10.56885935]
[1764464927535,2.78809701,136.48,136.44,12.64695636]
[1764464927536,0.71,136.48,136.44,12.64695636]
[1764464927737,0.71,136.47,136.44,12.64695636]
[1764464929639,0.71,136.47,136.45,9.40672058]
[1764464930061,0.71,136.47,136.45,7.32862357]
[1764464932347,2.07809701,136.46,136.43,16.13952701]
[1764464932552,2.07809701,136.46,136.43,19.37952701]
[1764464932754,0.71,136.45,136.43,19.37952701]
[1764464933545,0.71,136.45,136.43,16.13952701]
[1764464935063,0.71,136.45,136.44,2.07809701]
[1764464935260,0.71,136.45,136.42,16.4244466]
[1764464935460,2.78809701,136.45,136.42,16.4244466]
[1764464935766,0.71,136.45,136.42,16.4244466]
[1764464935972,0.69,136.44,136.42,9.09426806]
[1764464936355,0.69,136.44,136.42,16.42454034]
[1764464938740,7.32777264,136.47,136.42,16.42454034]
[1764464938942,0.69,136.47,136.44,3.25257164]
[1764464939357,0.69,136.47,136.43,12.06251656]
[1764464939756,3.24,136.49,136.45,3.25257164]
[1764464939956,13.81920842,136.49,136.45,3.25257164]
[1764464940150,0.69,136.48,136.45,3.25257164]
[1764464940357,0.69,136.48,136.44,3.24]
[1764464940572,8.01730615,136.48,136.45,3.25257164]
[1764464941073,0.69,136.47,136.45,3.25257164]
[1764464941644,123.948864,136.52,136.45,3.25257164]
[1764464941645,0.69,136.51,136.46,28.6557037]
[1764464941972,3.25257164,136.54,136.49,3.25257164]
[1764464942470,3.94257164,136.53,136.48,3.25257164]
[1764464942770,11.2670534,136.53,136.48,7.32663316]
[1764464942972,0.69,136.52,136.48,7.32663316]
[1764464943591,0.69,136.52,136.49,9.09426806]
[1764464943750,0.69,136.52,136.49,12.3468397]
[1764464944784,0.69,136.52,136.5,7.32600732]
[1764464951085,3.25257164,136.54,136.5,7.32600732]
[1764464951287,0.69,136.54,136.5,10.57857896]
[1764464951870,0.69,136.55,136.51,12.3468397]
[1764464952070,0.69,136.57,136.54,0.28432314]
[1764464952282,0.69,136.57,136.55,7.32332478]
[1764464952592,0.69,136.57,136.54,3.52432314]
[1764464953262,3.94257164,136.57,136.52,18.31118954]
[1764464953465,3.25257164,136.56,136.53,10.56434471]
[1764464953776,3.25257164,136.55,136.53,7.32434471]
[1764464953981,3.94257164,136.55,136.53,7.32434471]
[1764464954182,0.69,136.54,136.53,7.32434471]
[1764464954383,0.69,136.54,136.52,25.63612361]
[1764464956699,3.94257164,136.57,136.52,25.63612361]
[1764464956893,3.94257164,136.57,136.53,3.24]
[1764464957196,0.69,136.56,136.53,3.24]
[1764464957914,3.25257164,136.57,136.53,3.24]
[1764464957915,3.25257164,136.58,136.53,12.04994492]
[1764464958193,0.69,136.58,136.55,7.32332478]
[1764464958365,0.69,136.58,136.55,10.56332478]
[1764464959289,0.69,136.58,136.55,28.87163675]
[1764464962971,0.69,136.58,136.56,9.09426806]
[1764464964301,0.69,136.6,136.57,7.32225232]
[1764464964595,0.69,136.6,136.57,10.56225232]
[1764464968901,3.25257164,136.58,136.57,7.32225232]
[1764464969395,3.95257164,136.58,136.57,7.32225232]
[1764464970485,3.95257164,136.58,136.54,0.14216157]
[1764464970684,3.25257164,136.55,136.47,99.43784941]
[1764464970992,3.25257164,136.54,136.51,8.80994492]
[1764464971178,3.25257164,136.55,136.52,0.14216157]
[1764464971375,3.25257164,136.55,136.51,12.04994492]
[1764464971591,0.7,136.54,136.51,12.04994492]
[1764464972672,0.7,136.54,136.52,0.14216157]
[1764464972874,3.95257164,136.56,136.52,0.14216157]
[1764464973074,3.95257164,136.56,136.53,10.56439756]
[1764464973373,0.7,136.55,136.53,10.56439756]
[1764464973800,3.95257164,136.57,136.53,28.87539148]
[1764464974001,0.7,136.56,136.53,28.87539148]
[1764464977330,0.7,136.56,136.54,9.09426806]
[1764464977493,0.7,136.57,136.54,9.09426806]
[1764464978203,0.7,136.57,136.55,3.24]
[1764464978898,0.7,136.57,136.55,10.5628117]
[1764464979902,3.95257164,136.57,136.55,7.3228117]
[1764464980398,0.7,136.56,136.55,7.3228117]
[1764464980606,3.25257164,136.57,136.55,7.3228117]
[1764464980607,0.7,136.57,136.55,7.3228117]
[1764464980902,0.7,136.57,136.55,16.13275662]
[1764464981678,0.7,136.57,136.55,32.44162062]
[1764464987807,3.25257164,136.56,136.55,7.3228117]
[1764464987988,3.25257164,136.56,136.52,3.24]
[1764464988193,3.25257164,136.53,136.52,3.24]
[1764464988388,3.25257164,136.53,136.52,7.32493407]
[1764464988712,3.95257164,136.53,136.52,7.32493407]
[1764464989713,3.95257164,136.53,136.5,7.32600732]
[1764464990011,3.95257164,136.53,136.48,10.56664909]
[1764464990012,3.25257164,136.51,136.48,10.56664909]
[1764464990324,3.25257164,136.5,136.47,3.24]
[1764464990514,3.25257164,136.5,136.47,12.04994492]
[1764464990703,0.7,136.49,136.47,12.04994492]
[1764464991806,0.7,136.49,136.48,7.32708089]
[1764464992725,0.7,136.49,136.47,19.37738028]
[1764464993121,0.7,136.49,136.47,7.32743536]
[1764464993306,3.95257164,136.49,136.46,10.85232487]
[1764464993499,0.7,136.48,136.46,10.85232487]
[1764464995815,0.7,136.48,136.46,14.10489651]
[1764464996016,0.67,136.5,136.47,3.25257164]
[1764464996224,0.67,136.5,136.48,10.56708089]
[1764465000502,0.67,136.52,136.48,12.6465511]
[1764465001024,0.67,136.51,136.48,12.6465511]
[1764465001224,0.67,136.51,136.48,10.56708089]
[1764465001428,2.74947021,136.51,136.48,10.56708089]
[1764465001923,0.67,136.5,136.48,7.32708089]
[1764465008242,2.74947021,136.5,136.48,7.32708089]
[1764465008840,2.74947021,136.49,136.46,7.32768907]
[1764465009053,2.07947021,136.48,136.46,7.32768907]
[1764465009336,2.74947021,136.48,136.46,7.32768907]
[1764465009532,0.67,136.47,136.46,7.32768907]
[1764465010127,0.67,136.47,136.45,10.56865109]
[1764465012626,0.67,136.47,136.44,28.89171996]
[1764465014725,0.67,136.47,136.44,10.56922896]
[1764465016247,0.67,136.47,136.44,12.64869917]
[1764465017046,0.67,136.48,136.44,12.64869917]
[1764465017344,0.67,136.47,136.44,12.64869917]
[1764465017528,0.67,136.47,136.44,9.40869917]
[1764465017731,0.67,136.47,136.45,3.24]
[1764465018117,0.67,136.5,136.46,11.17373827]
[1764465018344,9.40459612,136.52,136.47,12.647088]
[1764465018523,0.67,136.49,136.47,10.56761779]
[1764465020440,9.40459612,136.52,136.47,10.56761779]
[1764465020629,0.69,136.5,136.47,10.56761779]
[1764465022847,0.69,136.52,136.48,11.17373827]
[1764465023049,0.69,136.52,136.49,5.31947021]
[1764465024451,0.69,136.52,136.49,12.64579319]
[1764465032159,0.69,136.52,136.49,10.56632298]
[1764465034864,2.76947021,136.52,136.49,3.24]
[1764465035363,0.66,136.51,136.49,10.56653445]
[1764465036465,0.66,136.51,136.49,7.32653445]
[1764465041259,2.73947021,136.51,136.48,10.54691805]
[1764465041868,0.66,136.5,136.48,10.54691805]
[1764465046544,0.66,136.5,136.48,3.22]
[1764465047974,0.66,136.5,136.48,10.54682081]
[1764465058183,0.66,136.5,136.46,9.09426806]
[1764465058184,2.07947021,136.49,136.46,9.09426806]
[1764465058363,2.07947021,136.47,136.44,8.80994492]
[1764465058563,3.25182058,136.46,136.44,12.02994492]
[1764465059172,0.69,136.45,136.44,12.31426806]
[1764465059355,0.69,136.45,136.44,19.64338838]
[1764465059560,0.69,136.45,136.44,19.50122681]
[1764465059898,0.69,136.45,136.44,19.64338838]
[1764465060660,0.69,136.45,136.44,7.32912032]
[1764465061178,0.69,136.45,136.43,3.22]
[1764465061481,3.94182058,136.45,136.43,3.22]
[1764465061660,0.69,136.44,136.43,3.22]
[1764465062600,0.69,136.46,136.43,19.3597111]
[1764465062897,0.69,136.45,136.43,19.3597111]
[1764465063472,0.69,136.46,136.43,19.3597111]
[1764465065597,0.69,136.48,136.44,12.34608864]
[1764465065777,0.19,136.48,136.45,3.22]
[1764465065970,0.19,136.48,136.45,3.72]
[1764465066794,3.25182058,136.5,136.46,9.09426806]
[1764465067006,10.57744588,136.51,136.46,9.59426806]
[1764465067183,3.25182058,136.52,136.47,3.72]
[1764465067372,3.25182058,136.52,136.48,7.32708089]
[1764465067685,0.69,136.51,136.48,7.32708089]
[1764465079375,0.69,136.51,136.48,11.07890147]
[1764465079701,0.69,136.51,136.48,7.82708089]
[1764465080088,0.69,136.51,136.48,7.32708089]
[1764465084006,0.69,136.51,136.49,3.22]
[1764465084306,0.69,136.51,136.49,10.54625079]
[1764465089941,3.25182058,136.52,136.49,11.04625079]
[1764465090104,0.72,136.51,136.49,10.54625079]
[1764465117630,0.69,136.55,136.5,12.84608864]
[1764465117814,0.69,136.55,136.51,3.22]
[1764465118013,0.69,136.55,136.51,3.72]
[1764465118235,0.69,136.55,136.51,6.97182058]
[1764465118534,3.25182058,136.58,136.52,12.84608864]
[1764465118716,3.94182058,136.58,136.52,9.59426806]
[1764465118912,0.69,136.57,136.52,12.84608864]
[1764465119117,0.69,136.57,136.52,29.15495264]
[1764465119318,0.69,136.57,136.54,7.32386113]
[1764465121223,0.69,136.57,136.54,7.82386113]
[1764465121427,0.69,136.57,136.54,7.32386113]
[1764465121720,0.69,136.57,136.54,29.32525455]
[1764465121933,0.69,136.58,136.55,2.86213101]
[1764465122132,0.69,136.58,136.55,6.08213101]
[1764465123130,0.69,136.58,136.56,7.32278851]
[1764465123415,2.76780787,136.58,136.56,7.32278851]
[1764465123736,0.69,136.58,136.56,7.32278851]
[1764465123925,0.69,136.57,136.56,7.32278851]
[1764465126656,16.308864,136.56,136.49,7.32654406]
[1764465126863,2.07780787,136.51,136.49,7.32654406]
[1764465127332,0.69,136.5,136.49,7.32654406]
[1764465131534,2.76780787,136.5,136.47,7.3244028]
[1764465131727,0.69,136.5,136.46,8.11211877]
[1764465132065,0.69,136.49,136.46,10.83211877]
[1764465133836,0.69,136.49,136.46,18.15705663]
[1764465135657,0.69,136.49,136.46,10.83211877]
[1764465137461,0.69,136.51,136.47,9.59426806]
[1764465137758,0.69,136.5,136.48,3.22]
[1764465139346,0.69,136.5,136.48,10.54662472]
[1764465156453,0.69,136.5,136.48,7.32662472]
[1764465156656,0.69,136.5,136.48,10.54662472]
[1764465159152,0.69,136.5,136.48,7.32662472]
[1764465165778,2.07780787,136.52,136.48,7.32662472]
[1764465165977,0.69,136.52,136.49,7.8264883]
[1764465166282,0.69,136.52,136.49,11.0464883]
[1764465166682,0.69,136.52,136.49,10.5464883]
[1764465171878,2.76780787,136.52,136.49,10.5464883]
[1764465172258,0.69,136.51,136.49,10.5464883]
[1764465178289,0.69,136.51,136.48,16.42134895]
[1764465178587,0.69,136.51,136.49,3.22]
[1764465179373,0.69,136.51,136.49,10.54644567]
[1764465183589,0.69,136.51,136.49,3.22]
[1764465183793,0.69,136.51,136.47,3.22]
[1764465184095,3.93906565,136.51,136.47,3.22]
[1764465184306,3.24906565,136.5,136.47,3.22]
[1764465184471,3.90906565,136.5,136.47,3.22]
[1764465184670,0.66,136.49,136.47,3.22]
[1764465185171,0.66,136.49,136.46,19.64242283]
[1764465192507,0.66,136.48,136.46,3.22]
[1764465192702,3.90906565,136.48,136.44,16.13898491]